Cogmind - Beta 16 @@@ ROGUE MODE // 2025.10.26 @ 11:19:44 Player: Crustium Result: Destroyed by Y-45 Defender with Heavy Assault Rifle Performance ------------- Evolutions (1) 500 Regions Visited (3) 600 Robots Destroyed (20) 100 Value Destroyed (406) 406 Prototype IDs (0) 0 Alien Tech Used (0) 0 Bonus (0) 0 TOTAL SCORE: 1606 Bonus ------- None Cogmind --------- Core Integrity 0/400 Matter 275/300 Energy 99/100 System Corruption 0% Temperature Cool (9) Movement Core (50) Location -9/Materials Parts ------- > --- POWER (1) -------- (None) > --- PROPULSION (2) --- (None) > --- UTILITY (4) ------ (None) > --- WEAPON (2) ------- (None) > --- INVENTORY (5) ---- Ion Engine Heat Sink Heat Sink Peak State ------------ > --- POWER ------------ Light Ion Engine > --- PROPULSION ------- (None) > --- UTILITY ---------- Improved Heat Sink Large Storage Unit Improved Terrain Scanner > --- WEAPON ----------- Particle Gun Light Assault Rifle > --- INVENTORY -------- Ion Engine Light Ion Engine Heat Sink Heat Sink Assault Rifle [Rating: 11] Favorites ----------- Power Ion Engine Engine Ion Engine Propulsion Light Treads Treads Light Treads Utility Small Storage Unit Device Heat Sink Storage Small Storage Unit Protection Light Armor Plating Weapon Assault Rifle Energy Gun Particle Gun Ballistic Gun Assault Rifle Build | -11 -10 -10 -9 ------- Run | Yrd Mat Min Mat Slots Evolved 2 | . . . 2 Power . | . . . . Propulsion . | . . . . Utility 2 | . . . 2 Weapon . | . . . . Parts Attached 19 | 6 1 6 6 Power 3 | 1 . 1 1 Engine 3 | 1 . 1 1 Core . | . . . . Reactor . | . . . . Propulsion 2 | 2 . . . Treads 2 | 2 . . . Leg . | . . . . Wheel . | . . . . Hover . | . . . . Flight . | . . . . Utility 7 | 1 1 2 3 Device 4 | . 1 . 3 Storage 2 | 1 . 1 . Processor . | . . . . Hackware . | . . . . Protection 1 | . . 1 . Artifact . | . . . . Weapon 7 | 2 . 3 2 Energy Gun 2 | . . 2 . Energy Cannon . | . . . . Ballistic Gun 5 | 2 . 1 2 Ballistic Cannon . | . . . . Launcher . | . . . . Special Weapon . | . . . . Impact Weapon . | . . . . Slashing Weapon . | . . . . Piercing Weapon . | . . . . Special Melee Weapon . | . . . . Unidentified Prototypes . | . . . . Parts Lost 12 | . . 4 8 Power 1 | . . . 1 Propulsion 2 | . . 2 . Utility 4 | . . 1 3 Weapon 5 | . . 1 4 Highest Loss Streak 8 | . . 3 8 To Critical Strikes . | . . . . Average Backups 3 | 1 2 5 3 Power 1 | . 1 2 1 Propulsion . | . . . . Utility 1 | . . 2 2 Weapon . | . 1 1 . Tool/Special . | . . . . Unused Backups 2 | . . . 2 Power 1 | . . . 1 Propulsion . | . . . . Utility 1 | . . . 1 Weapon . | . . . . Tool/Special . | . . . . Average Slot Usage (%) 87 | . 97 96 45 Engine 12 | . 14 14 7 Treads 22 | . 28 27 . Device 6 | . 11 . 17 Storage 11 | . 14 13 . Protection 6 | . . 11 . Energy Gun 4 | . . 4 7 Ballistic Gun 22 | . 28 22 12 Peak Build Rating 11 | 6 7 9 11 Average Rating 6 | 5 6 7 8 On Entrance 4 | . 6 7 5 Avg Prop Armor Cover (%) . | . . . . Naked Turns . | . . . . Heaviest Build 32 | 14 15 32 9 Greatest Support 40 | 40 40 40 3 Greatest Overweight (x) 8 | . . 8 2 Average Overweight (x) . | . . . 1 Largest Inventory Capacity 15 | 8 8 15 15 Average Capacity 10 | 7 8 14 5 Most Carried 8 | 2 3 8 7 Average Carried 3 | 1 2 5 3 Final Capacity 15 | 8 8 15 5 Final Carried 8 | 2 3 8 3 Class Distribution -------------------- 90% | Mutant 9% | Scavenger-Mutant Dominant Class ---------------- Mutant | -10/Materials Mutant | -10/Mines Scavenger-Mutant | -9/Materials Resources | -11 -10 -10 -9 ----------- Run | Yrd Mat Min Mat Matter Collected 578 | 213 76 212 77 Remotely 77 | . . . 77 Salvage Created 457 | . 116 212 129 Parts 37 | . 13 11 13 Haulers Intercepted . | . . . . Recyclers Shooed . | . . . . Parts Field Recycled . | . . . . Retrieved Matter . | . . . . Parts Self-Destructed . | . . . . Prevented . | . . . . Parts Restored . | . . . . Kills | -11 -10 -10 -9 ------- Run | Yrd Mat Min Mat Combat Hostiles Destroyed 18 | . 4 7 7 Guns 18 | . 4 7 7 Classes Destroyed 4 | . 3 1 . Tunneler 1 | . . 1 . Watcher 1 | . 1 . . Swarmer 12 | . 3 3 6 Grunt 6 | . 1 4 1 Best Kill Streak 7 | . 3 4 7 Combat Bots Only 7 | . 3 3 7 Max Kills in Single Turn 1 | . 1 1 1 Gunslinging . | . . . . Exploded . | . . . . Melee . | . . . . Uniques/NPCs Destroyed . | . . . . Combat | -11 -10 -10 -9 -------- Run | Yrd Mat Min Mat Hostile Shots Fired 190 | . 57 30 103 Missed 44 | . 16 5 23 Hits 146 | . 41 25 80 Projectile 146 | . 41 25 80 AOE 9 | . . 9 . Critical Strikes 2 | . . . 2 Damage Taken 1649 | . 365 499 785 Core 541 | . 57 82 402 Absorbed by Shields . | . . . . Core Remaining (%) 72 | 100 . 44 . Volleys Fired 51 | . 18 13 20 Largest 2 | . 2 2 2 Hottest 85 | . 40 85 40 Shots Fired 89 | . 36 26 27 Gun 89 | . 36 26 27 Cannon . | . . . . Launcher . | . . . . Special . | . . . . Kinetic 86 | . 36 23 27 Thermal 3 | . . 3 . Explosive . | . . . . Electromagnetic . | . . . . Robot Hit Streak 7 | . 6 6 7 Robot Miss Streak 4 | . 2 2 4 Penetration Max . | . . . . Secondary Targets 2 | . 1 1 . Max Gunslinging Chain 1 | . 1 1 . Shots Hit Robots 57 | . 21 19 17 Core Hits 29 | . 9 12 8 Critical Kills . | . . . . Critical Parts Destroyed 1 | . 1 . . Critical Strikes 1 | . 1 . . Destroy 1 | . 1 . . Melee Attacks . | . . . . Impact . | . . . . Slashing . | . . . . Piercing . | . . . . Sneak Attacks . | . . . . Combat Hostiles . | . . . . Follow-up Attacks . | . . . . Damage Inflicted 765 | . 291 254 220 Guns 753 | . 291 250 212 Cannons . | . . . . Explosions . | . . . . Melee . | . . . . Ramming 12 | . . 4 8 Kinetic 707 | . 291 204 212 Thermal 46 | . . 46 . Explosive . | . . . . Electromagnetic . | . . . . Impact . | . . . . Slashing . | . . . . Piercing . | . . . . Highest Corruption 3 | . 3 3 . Average Corruption 2 | . 2 3 . Corruption Purged . | . . . . Corruption Blocked . | . . . . Effects 9 | . 2 7 . Message Errors 3 | . . 3 . Matter Fused 3 | . 2 1 . Energy Discharges 1 | . . 1 . Parts Fused 1 | . . 1 . Data Loss (minor) 1 | . . 1 . Overload Shots . | . . . . Overflow Damage . | . . . . Projectiles . | . . . . Explosions . | . . . . Melee . | . . . . Knockbacks . | . . . . Impact . | . . . . Kinetic . | . . . . Secondary . | . . . . Self-Inflicted Damage 54 | . . . 54 Shots 1 | . . . 1 Rammed 2 | . . . 2 Targets Rammed 3 | . . 1 2 Kicked . | . . . . Crushed 1 | . . 1 . Highest Temperature 96 | . . 96 . Average Temperature 37 | . . 37 . Received Heat Transfer 252 | . 69 48 135 Siege Activations . | . . . . Martial Activations . | . . . . Shielding Activations . | . . . . Robots Disrupted . | . . . . Combat Hostiles . | . . . . Robots Corrupted . | . . . . Combat Hostiles . | . . . . Parts Fried . | . . . . Impact Corruptions . | . . . . Robots Melted . | . . . . Combat Hostiles . | . . . . Parts Melted . | . . . . Heat Transferred 111 | . . 111 . Parts Sabotaged . | . . . . Parts Stolen . | . . . . Parts Stripped . | . . . . Power Chain Reactions . | . . . . Alert | -11 -10 -10 -9 ------- Run | Yrd Mat Min Mat Maximum Alert Level . | . . . . Low Security (%) 100 | 100 100 100 100 Level 1 . | . . . . Level 2 . | . . . . Level 3 . | . . . . Level 4 . | . . . . Level 5 . | . . . . High Security . | . . . . Max Security . | . . . . Peak Influence 183 | . 60 87 183 Initial 12 | . . 10 12 Average 21 | . 19 25 39 Influence Increases 515 | . 107 175 233 Destroy 0b10 Robot/C 360 | . 80 140 140 Destroy 0b10 Robot/NC 10 | . 5 5 . Destroy Leader 72 | . 22 30 20 Disable Machine 30 | . . . 30 Destroy Structure 28 | . . . 28 Lose Combat Pursuer 15 | . . . 15 Influence Decreases 352 | . 80 169 103 Entered New Map 38 | . . 17 21 Time Decay 224 | . 80 112 32 Lost Part 90 | . . 40 50 Squads Dispatched 1 | . . . 1 Investigation . | . . . . Extermination . | . . . . Reinforcement 1 | . . . 1 Assault . | . . . . Garrison . | . . . . Intercept . | . . . . Searches Triggered . | . . . . Construction Impeded 1 | . . . 1 Haulers Reinforced . | . . . . Active Scanning Responses . | . . . . Cargo Convoy Interrupts . | . . . . Stealth | -11 -10 -10 -9 --------- Run | Yrd Mat Min Mat Distress Signals . | . . . . Communications Jammed . | . . . . Distress Signals . | . . . . Times Spotted 34 | . 9 10 15 Peak Tracking Total 14 | . 4 3 14 Tactical Retreats 1 | . . . 1 Traps | -11 -10 -10 -9 ------- Run | Yrd Mat Min Mat Traps Triggered 2 | . 2 . . Indirectly . | . . . . Trap Hack Attempts . | . . . . Triggered . | . . . . Disarmed . | . . . . Reprogrammed . | . . . . Reused . | . . . . Traps Extracted . | . . . . Installed . | . . . . Triggered . | . . . . Machines | -11 -10 -10 -9 ---------- Run | Yrd Mat Min Mat Machines Disabled 2 | . . . 2 Max in Single Turn 2 | . . . 2 Machines Repaired . | . . . . Machines Dismantled . | . . . . Machines Sabotaged . | . . . . Overloaded Fab Kills . | . . . . Hacking | -11 -10 -10 -9 --------- Run | Yrd Mat Min Mat Machines Accessed 1 | . . . 1 Terminals 1 | . . . 1 Fabricators . | . . . . Repair Stations . | . . . . Recycling Units . | . . . . Scanalyzers . | . . . . Garrison Access . | . . . . Total Hacks 1 | . . . 1 Successful . | . . . . Failed 1 | . . . 1 Catastrophic . | . . . . Database Lockouts . | . . . . Manual 1 | . . . 1 Terminals 1 | . . . 1 Fabricators . | . . . . Repair Stations . | . . . . Recycling Units . | . . . . Scanalyzers . | . . . . Garrison Access . | . . . . Terminal Hacks . | . . . . Fabricator Hacks . | . . . . Repair Station Hacks . | . . . . Recycling Unit Hacks . | . . . . Scanalyzer . | . . . . Garrison Access Hacks . | . . . . Unauthorized Hacks . | . . . . Terminals . | . . . . Fabricators . | . . . . Repair Stations . | . . . . Recycling Units . | . . . . Scanalyzers . | . . . . Garrison Access . | . . . . Data Cores Recovered . | . . . . Used . | . . . . Hacking Detections . | . . . . Full Trace Events . | . . . . Feedback Events . | . . . . Feedback Blocked . | . . . . Robot Schematics Acquired . | . . . . Robots Built . | . . . . Authchips . | . . . . Time . | . . . . Total Robot Build Rating . | . . . . Part Schematics Acquired . | . . . . Parts Built . | . . . . Authchips . | . . . . Time . | . . . . Total Part Build Rating . | . . . . Part Studies Acquired . | . . . . Parts Repaired . | . . . . Time . | . . . . Parts Recycled . | . . . . Recycled Matter . | . . . . Retrieved Matter . | . . . . Retrieved Components . | . . . . Parts Scanalyzed . | . . . . Part Schematics Acquired . | . . . . Parts Damaged . | . . . . Bothacking | -11 -10 -10 -9 ------------ Run | Yrd Mat Min Mat Used RIF Installer . | . . . . Robots Hacked . | . . . . Non-combat . | . . . . Combat . | . . . . Robot Hacks Applied . | . . . . Relay Couplers Released . | . . . . Fabnet Peak Effective % . | . . . . Robots Rewired . | . . . . Allies Hacked . | . . . . Hacks Repelled . | . . . . Allies | -11 -10 -10 -9 -------- Run | Yrd Mat Min Mat Total Allies . | . . . . Largest Group . | . . . . Highest-Rated Group . | . . . . Highest-Rated Ally . | . . . . Total Orders . | . . . . Ally Attacks . | . . . . Total Damage . | . . . . Kills . | . . . . Allies Corrupted . | . . . . Allies Melted . | . . . . Intel | -11 -10 -10 -9 ------- Run | Yrd Mat Min Mat Active Infowar (turns) 4 | . . . 4 Terrain 4 | . . . 4 Robot Analysis Total . | . . . . Derelict Logs Recovered 1 | . . 1 . Drone Launches . | . . . . Drone Recoveries . | . . . . Exploration | -11 -10 -10 -9 ------------- Run | Yrd Mat Min Mat Turns Passed 1255 | 257 248 574 176 Spaces Moved 662 | 157 101 313 91 Core 96 | 4 . 1 91 Treads 566 | 153 101 312 . Legs . | . . . . Wheels . | . . . . Hover . | . . . . Flight . | . . . . Fastest Speed 50 | 50 160 160 50 Average Speed 156 | 157 160 161 132 Slowest Speed 450 | 160 160 450 150 Overloaded Moves . | . . . . Propulsion Burnouts . | . . . . Robots Hopped . | . . . . Potential Cave-ins . | . . . . Cave-ins Triggered . | . . . . Exploration Rate (%) 25 | 10 19 60 14 Regions Visited 3 Branch Regions 1 Pre-discovered Areas . | . . . . Known Exits Taken 1 | . . 1 . Unknown Exits Taken 2 | 1 1 . . Scrap Searched . | . . . . Spaces Dug . | . . . . Terrain Destroyed 30 | . . . 30 Melee . | . . . . Projectile . | . . . . AOE 30 | . . . 30 Terrain Rammed . | . . . . Walls Destroyed . | . . . . Machines Disabled . | . . . . Actions | -11 -10 -10 -9 --------- Run | Yrd Mat Min Mat Total 794 | 164 151 358 121 Wait 41 | . 31 10 . Move 659 | 156 100 312 91 Hop . | . . . . Pick Up 11 | 2 1 8 . Fast Attach 12 | 6 1 3 2 Attach 6 | . . 2 4 Detach 1 | . . 1 . Swap 3 | . . 2 1 Drop 7 | . . 6 1 Fire 51 | . 18 13 20 Melee . | . . . . Ram 2 | . . . 2 Kick . | . . . . Crush 1 | . . 1 . Escape Stasis . | . . . . Rewire . | . . . . Trap . | . . . . Miscellaneous . | . . . . Route ------- -11/Scrapyard -10/Materials -10/Mines (discovered 2 exits: *Mat x2) -9/Materials History --------- Turn | Location | Event 19 | -11/Scrapyard | Discovered new exit (range 16) 258 | -11/Scrapyard | Entered Materials 316 | -10/Materials | Build established: Mutant 426 | -10/Materials | Discovered new exit (range 7) 506 | -10/Materials | Entered Mines 825 | -10/Mines | Identified exit to Materials 882 | -10/Mines | Discovered exit to Materials (range 15) 1061 | -10/Mines | Assembled infested the area 1077 | -10/Mines | Core integrity fell below 50% 1080 | -10/Mines | Entered Materials 1080 | -9/Materials | Evolved 2 slots: Utility x2 1109 | -9/Materials | Lost 3 parts (2n1w) 1211 | -9/Materials | Core integrity fell below 50% 1229 | -9/Materials | Core integrity fell below 20% 1256 | -9/Materials | Destroyed by Y-45 Defender with Heavy Assault Rifle Last Messages --------------- U-05 Engineer builds a Wall. U-05 Engineer lays Concrete. U-05 Engineer builds a Wall. S-10 Pest destroyed. U-05 Engineer lays Concrete. Broken Imp. Heat Sink destroyed. ALERT: Construction progress impeded, dispatching reinforcements to local area. U-05 Engineer builds a Wall. Assault Rifle destroyed. R-06 Scavenger collects Lgt. Assault Rifle. U-05 Engineer lays Concrete. K-01 Serf collects debris. R-06 Scavenger collects Flight Unit. U-05 Engineer lays Concrete. G-34 Mercenary destroyed. U-05 Engineer lays Concrete. K-01 Serf collects debris. U-05 Engineer lays Concrete. Lgt. Assault Rifle destroyed. Map ----- +----------------------------------------------------+ | ???????????????????# ? ??????????? | | ???????????????????# """ """ #??????????? | | ???????????????????# """ """ #??????????? | | ???????????????????? """ """ #??????????? | | ????????????????????# #?????###### | | ????????????????????# ####### | | ????????######+###### """ """ "" | | ???????? """ """ T | | ???????? """ """ | | ???????????? ####### | | ???????????????????# #?????###### | | ???????????????????# """ #??????????? | | ???????????????????# """ #??????????? | | ???????????????????# """ ############ | | ???????????????????# ""T"" | | ???????????????????# """"" ############# | | ???????????????????# ######;;#######???????????? | | ???????????????????# ###;;;;####;#?????????????? | | ???????????????????# ## ;##????????????? | | ??????????????????## ## ; #????????????? | | ???????????######## # u ; #????????????? | | ??????? # r ;#####?????????? | | ??????? +%u ;; ???????? | | ??????? #Ys ;; k ???????? | | ????????########### #% ;# ???????? | | ??????????????????## ##@ ;#?????????????? | | ???????????????????# #####;;;;;###?????????????? | | ???????????????????# #????######???????????????? | | ???????????????????# #?????????????????????????? | | ???????????????????# #?????????????????????????? | | ???????????????????# ??????????????????????????? | | ???????????????????# ??????????????????????????? | | ???????????????????# ??????????????????????????? | | ???????????????????# ??????????????????????????? | | ???????????????????# ??????????????????????????? | | ???????????????????+ ??????????????????????????? | | ???????????????????# ??????????????????????????? | | ?????????????????????????????????????????????????? | | ?????????????????????????????????????????????????? | | ?????????????????????????????????????????????????? | | ?????????????????????????????????????????????????? | | ?????????????????????????????????????????????????? | | ?????????????????????????????????????????????????? | | ?????????????????????????????????????????????????? | | ?????????????????????????????????????????????????? | | ?????????????????????????????????????????????????? | | ?????????????????????????????????????????????????? | | ?????????????????????????????????????????????????? | | ?????????????????????????????????????????????????? | | ?????????????????????????????????????????????????? | +----------------------------------------------------+ Best States ------------- Heat Dissipation 35 Energy Generation 10 Energy Capacity 250 Matter Stores 300 Matter Capacity 300 Sight Range 16 Terrain Scan Density 10 Armor Coverage 150 Evasion (%) 50 Recoil Reduction 2 Item Schematics ----------------- None Robot Schematics ------------------ None Fabricated ------------ Nothing Repaired ---------- Nothing Studied --------- None Alien Tech Used ----------------- None Achievements -------------- None Challenges ------------ None Game ------ Seed WarpInsulatedLance Manual? 0 Play Time 00:13:08 Cumulative 2.2 hours Start 2025.10.26 @ 11:04:26 End 2025.10.26 @ 11:19:44 Sessions 1 Manual Loads 0 Difficulty Rogue Special Mode None Game No. 4 Rogue 4 Adventurer 0 Explorer 0 Win Type - Total 0 Types 0/0/0/0/0/0/0/0/0/0 Lore% 2 Gallery% 5 Achievement% 7 Wizard Run 0 Options --------- Layout 2 ASCII 0 Keyboard 0 Movement Arrows Keybinds 0 Fullscreen 1 Font 32/SmallcapsGlow Map View 50x44 Zoom Use 0% Tactical HUD 0 Map Filters NONE Filters NONE Steam 1 RUN: ed922c39-b8b4-45c1-851a-5085066dc865